bitfinex/quotes_SOLUSD_20251007
["timestamp","ask_amount","ask_price","bid_price","bid_amount"]
[1759838369078,4.33914779,230.46,230.44,30.96]
[1759838369881,4.33914779,230.46,230.45,0.66]
[1759838371268,26.4,230.47,230.45,0.66]
[1759838373767,4.33836649,230.51,230.45,0.66]
[1759838374200,4.33836649,230.51,230.45,13.68168109]
[1759838374372,4.33836649,230.51,230.46,0.69]
[1759838374998,10.84484708,230.53,230.46,0.69]
[1759838375879,5.901253,230.52,230.47,30.3]
[1759838376082,1.73325605,230.51,230.47,30.3]
[1759838376492,1.73325605,230.51,230.47,30.99]
[1759838377096,4.33839479,230.5,230.47,30.99]
[1759838377488,4.33839479,230.5,230.48,0.69]
[1759838377678,4.33839479,230.5,230.49,0.69]
[1759838378485,4.33839479,230.5,230.47,30.3]
[1759838378687,15.35438177,230.5,230.47,30.3]
[1759838378889,15.18438177,230.5,230.47,30.3]
[1759838381108,15.35438177,230.5,230.47,30.3]
[1759838381308,15.18438177,230.5,230.47,30.3]
[1759838381515,15.18438177,230.5,230.47,30.99]
[1759838381701,15.18438177,230.5,230.47,30.3]
[1759838383089,4.33877125,230.48,230.47,30.3]
[1759838384709,4.33877125,230.48,230.45,0.69]
[1759838385009,4.33877125,230.48,230.47,30.28]
[1759838385398,2.9170208,230.49,230.47,30.28]
[1759838385713,16.91763782,230.5,230.48,30.28]
[1759838385893,4.00110078,230.49,230.48,30.28]
[1759838387514,8.33968379,230.49,230.48,30.28]
[1759838392787,21.08939738,230.49,230.43,0.69]
[1759838393014,5.73435683,230.48,230.44,30.28]
[1759838393217,4.00110078,230.47,230.44,30.97]
[1759838393396,1.73325605,230.48,230.44,30.97]
[1759838393595,4.00102222,230.47,230.44,30.97]
[1759838393809,1.73325605,230.48,230.44,30.97]
[1759838394112,4.33914779,230.46,230.44,30.97]
[1759838394299,4.33914779,230.46,230.45,0.69]
[1759838394697,4.33914779,230.46,230.44,30.28]
[1759838395416,4.33914779,230.46,230.44,30.94]
[1759838395618,4.33914779,230.46,230.44,0.66]
[1759838395918,4.33914779,230.46,230.45,30.94]
[1759838396307,15.18651507,230.47,230.45,30.94]
[1759838396502,15.18651507,230.47,230.45,30.28]
[1759838397315,15.18651507,230.47,230.45,30.94]
[1759838398421,15.18651507,230.47,230.46,0.66]
[1759838398622,18.10322547,230.47,230.45,30.28]
[1759838398800,15.18651507,230.47,230.45,30.94]
[1759838400329,16.91977112,230.47,230.45,30.28]
[1759838400625,4.00090886,230.46,230.45,30.28]
[1759838400828,8.34005665,230.46,230.45,30.94]
[1759838401027,8.34005665,230.46,230.45,30.28]
[1759838401609,21.09118217,230.46,230.41,0.71]
[1759838401826,21.09118217,230.46,230.42,30.99]
[1759838401827,5.73416491,230.45,230.42,30.99]
[1759838402031,4.00090886,230.44,230.42,30.99]
[1759838402235,4.65014718,230.45,230.42,30.99]
[1759838402534,5.7342497,230.44,230.43,30.28]
[1759838402704,10.07377408,230.44,230.43,30.28]
[1759838403026,41.89258505,230.44,230.37,0.71]
[1759838403228,1.73325605,230.41,230.37,0.71]
[1759838403413,1.73325605,230.4,230.38,0.71]
[1759838404345,4.34046616,230.39,230.38,0.71]
[1759838404514,16.92488762,230.39,230.38,30.28]
[1759838404829,20.92530349,230.39,230.38,30.28]
[1759838406213,20.92530349,230.39,230.34,0.71]
[1759838406414,3.99814365,230.38,230.37,30.28]
[1759838406621,4.16814365,230.38,230.32,0.71]
[1759838406818,20.8,230.36,230.33,30.28]
[1759838407016,4.34046616,230.39,230.34,0.71]
[1759838408240,10.85087342,230.4,230.34,0.71]
[1759838410118,10.85087342,230.4,230.35,30.3]
[1759838410334,15.19115119,230.4,230.36,0.71]
[1759838412049,15.19115119,230.4,230.37,0.71]
[1759838412255,15.19115119,230.4,230.35,0.71]
[1759838412434,17.9022841,230.4,230.38,30.3]
[1759838412626,17.9022841,230.4,230.34,0.71]
[1759838412826,15.36115119,230.4,230.34,0.71]
[1759838413142,23.51113291,230.37,230.35,30.3]
[1759838413349,23.51113291,230.37,230.34,0.71]
[1759838413656,23.51113291,230.37,230.35,30.3]
[1759838414122,4.34103142,230.36,230.32,0.71]
[1759838414325,4.34103142,230.36,230.33,31.01]
[1759838414526,15.19360999,230.36,230.33,31.01]
[1759838414738,17.9047429,230.36,230.33,30.3]
[1759838415233,17.9047429,230.36,230.33,31.01]
[1759838415850,15.19360999,230.36,230.33,31.01]
[1759838416563,17.9047429,230.36,230.33,31.01]
[1759838416732,15.19360999,230.36,230.33,31.01]
[1759838417133,17.9047429,230.36,230.33,31.01]
[1759838417757,17.9047429,230.36,230.33,30.3]
[1759838417957,2.71113291,230.35,230.33,30.3]
[1759838418137,2.71113291,230.35,230.34,30.3]
[1759838418655,2.71113291,230.35,230.31,34.63]
[1759838418656,20.8,230.33,230.31,33.92]
[1759838418828,2.71113291,230.32,230.31,33.92]
[1759838419235,7.05291825,230.32,230.31,33.92]
[1759838419434,27.85291825,230.32,230.31,33.92]
[1759838419627,27.85291825,230.32,230.31,64.22]
[1759838420761,25.14178534,230.32,230.31,64.93]
[1759838425354,4.34178534,230.32,230.31,64.93]
[1759838427264,10.85366144,230.34,230.31,64.93]
[1759838427443,10.85366144,230.34,230.32,0.71]
[1759838427740,10.85366144,230.34,230.33,30.3]
[1759838427940,10.85366144,230.34,230.33,31.01]
[1759838431666,10.85366144,230.34,230.33,30.96]
[1759838436055,10.85366144,230.34,230.33,30.3]
[1759838436462,10.85366144,230.34,230.33,30.96]
[1759838438177,20.8,230.32,230.31,0.1]
[1759838438351,23.51113291,230.32,230.31,30.4]
[1759838438551,20.8,230.32,230.31,30.4]
[1759838439346,20.8,230.32,230.31,31.1]
[1759838439941,20.8,230.32,230.31,30.4]
[1759838440246,25.14178534,230.32,230.31,30.4]
[1759838446079,25.14178534,230.32,230.31,31.1]
[1759838447279,27.85291825,230.32,230.3,0.2]
[1759838447578,20.8,230.31,230.3,0.2]
[1759838447769,21.88460526,230.31,230.3,0.2]
[1759838448579,26.22657912,230.31,230.3,31.2]
[1759838449490,26.22657912,230.31,230.3,30.5]
[1759838449979,26.22657912,230.31,230.3,31.2]
[1759838453457,26.22657912,230.31,230.3,30.5]
[1759838453784,26.22657912,230.31,230.3,31.2]
[1759838456188,26.22657912,230.31,230.3,30.5]
[1759838457260,29.14636285,230.31,230.3,30.5]
[1759838457580,29.14636285,230.31,230.3,31.2]
[1759838460322,32.02749576,230.31,230.29,0.1]
[1759838460468,13.58760812,230.26,230.25,1e-08]
[1759838460667,10.87647521,230.22,230.18,1e-08]
[1759838460877,2.71113291,230.19,230.18,1e-08]
[1759838461163,6.71504464,230.19,230.16,0.1]
[1759838461379,4.00391173,230.18,230.16,0.1]
[1759838461596,2.71113291,230.19,230.17,11.72]
[1759838461786,8.44885476,230.18,230.17,11.72]
[1759838462388,31.67647521,230.16,230.15,0.1]
[1759838462596,10.87647521,230.15,230.07,0.1]
[1759838462776,2.71113291,230.13,230.07,0.1]
[1759838462976,20.8,230.09,230.07,0.1]
[1759838463173,24.79420561,230.09,230.07,0.1]
[1759838463405,21.88532602,230.09,230.07,0.1]
[1759838463592,26.33630799,230.09,230.07,30.4]
[1759838463792,26.33630799,230.09,230.07,0.1]
[1759838464505,30.68243341,230.09,230.07,0.1]
[1759838465899,26.23145144,230.09,230.08,0.76]
[1759838466202,26.23145144,230.09,230.08,0.1]
[1759838467175,27.97126549,230.09,230.08,0.1]
[1759838475708,1.08532602,230.09,230.08,0.76]
[1759838476591,25.14586444,230.11,230.08,0.76]
[1759838476592,20.8,230.11,230.08,0.76]
[1759838476786,1.73981405,230.16,230.08,0.76]
[1759838477192,10.86173817,230.17,230.08,0.76]
[1759838477193,4.34499239,230.15,230.08,0.76]
[1759838477610,15.20635301,230.17,230.08,0.76]
[1759838480002,16.94616706,230.17,230.08,0.76]
[1759838480604,15.20635301,230.17,230.08,0.76]
[1759838483019,16.94616706,230.17,230.08,0.76]
[1759838483224,1.73981405,230.16,230.08,0.76]
[1759838483533,15.86635301,230.17,230.08,0.76]
[1759838483708,17.60616706,230.17,230.08,0.76]
[1759838484913,4.34499239,230.15,230.08,0.76]
[1759838485415,5.00499239,230.15,230.09,30.32]
[1759838485604,17.60728743,230.15,230.09,30.32]
[1759838486326,17.60728743,230.15,230.09,0.66]
[1759838486527,17.60728743,230.15,230.1,30.32]
[1759838486727,4.34537,230.13,230.1,30.32]
[1759838486937,4.34537,230.13,230.08,30.42]
[1759838487128,25.80537,230.13,230.08,31.08]
[1759838487444,25.14537,230.13,230.09,0.66]
[1759838488108,25.14537,230.13,230.08,30.42]
[1759838488109,25.80537,230.13,230.08,30.42]
[1759838488309,25.80537,230.13,230.08,31.08]
[1759838489025,4.34574768,230.11,230.09,30.32]
[1759838490237,5.00574768,230.11,230.09,30.32]
[1759838491830,4.34574768,230.11,230.09,30.32]
[1759838494327,4.34574768,230.11,230.1,0.66]
[1759838494836,4.34574768,230.11,230.09,30.32]
[1759838495033,4.34574768,230.11,230.09,30.98]
[1759838495239,4.34574768,230.11,230.09,30.32]
[1759838495938,5.02574768,230.11,230.09,30.32]
[1759838496422,4.34574768,230.11,230.09,30.32]
[1759838496737,4.34574768,230.11,230.08,0.1]
[1759838496941,4.34574768,230.11,230.09,30.32]
[1759838497723,26.4,230.15,230.1,0.71]
[1759838497935,4.34516694,230.15,230.1,0.71]
[1759838498446,4.3444261,230.18,230.1,0.71]
[1759838498629,2.89430268,230.17,230.1,0.71]
[1759838498827,4.3444261,230.18,230.1,0.71]
[1759838499549,15.20549135,230.18,230.1,0.71]
[1759838499729,10.86106525,230.18,230.1,0.71]
[1759838500219,2.89837563,230.17,230.1,0.71]
[1759838500424,12.6008793,230.18,230.1,0.71]
[1759838500659,3.59857675,230.17,230.1,0.71]
[1759838500838,2.89857675,230.16,230.1,0.71]
[1759838501026,2.89857675,230.15,230.1,0.71]
[1759838501330,2.89857675,230.15,230.08,0.1]
[1759838501331,3.60094223,230.14,230.08,0.81]
[1759838501535,0.7,230.14,230.11,30.34]
[1759838501746,1.73981405,230.15,230.11,30.34]
[1759838501747,6.08497468,230.15,230.11,31.05]
[1759838501941,2.90082326,230.14,230.11,31.05]
[1759838502159,4.34516063,230.15,230.11,31.05]
[1759838502360,2.90312728,230.14,230.12,0.71]
[1759838502554,4.34516063,230.15,230.12,0.71]
[1759838502863,2.90333303,230.14,230.12,0.71]
[1759838503054,4.34516063,230.15,230.12,0.71]
[1759838503240,2.9033317,230.14,230.12,0.71]
[1759838503442,2.9033317,230.13,230.11,30.34]
[1759838503643,4.34516063,230.15,230.11,30.34]
[1759838503850,4.34537,230.13,230.11,30.34]
[1759838504359,2.91016599,230.12,230.11,30.34]
[1759838505257,7.25572482,230.12,230.11,30.34]
[1759838506256,2.91016599,230.12,230.11,30.34]
[1759838506738,2.91016599,230.12,230.11,31.05]
[1759838506943,2.91016599,230.12,230.11,30.34]
[1759838507663,7.25572482,230.12,230.11,30.34]
[1759838508344,4.34555883,230.12,230.11,30.34]
[1759838508744,4.34518119,230.14,230.11,30.34]
[1759838508951,2.90857271,230.13,230.11,30.34]
[1759838509151,4.34518119,230.14,230.11,30.34]
[1759838509473,2.90865057,230.13,230.11,30.34]
[1759838509655,6.78499524,230.14,230.11,30.34]
[1759838509856,2.90887732,230.13,230.11,30.34]
[1759838510064,6.78499524,230.14,230.11,30.34]
[1759838510363,4.34555883,230.12,230.11,30.34]
[1759838510952,30.49437575,230.12,230.11,30.34]
[1759838511657,28.0545617,230.12,230.11,30.34]
[1759838514375,28.0545617,230.12,230.11,31.05]
[1759838514572,28.0545617,230.12,230.11,30.34]
[1759838516470,23.70900287,230.12,230.11,31.05]
[1759838516775,7.2545617,230.12,230.11,31.05]
[1759838517675,7.2545617,230.12,230.11,30.34]
[1759838520885,7.9545617,230.12,230.11,30.34]
[1759838523077,7.2545617,230.12,230.11,30.34]
[1759838523282,7.2545617,230.12,230.11,31.0]
[1759838523779,7.2545617,230.12,230.11,30.34]
[1759838527885,7.9145617,230.12,230.11,30.34]
[1759838528185,7.2545617,230.12,230.11,30.34]
[1759838529673,18.11845879,230.12,230.1,30.32]
[1759838529977,2.90900287,230.11,230.1,30.32]
[1759838530881,2.90900287,230.11,230.1,30.98]
[1759838531066,7.25475055,230.11,230.1,30.98]
[1759838532701,7.25475055,230.11,230.1,30.32]
[1759838534286,21.49648932,230.11,230.08,0.1]
[1759838534590,5.62637243,230.1,230.08,0.1]
[1759838534790,7.25512829,230.09,230.08,0.1]
[1759838535170,7.91512829,230.09,230.08,0.1]
[1759838535366,10.63249785,230.09,230.08,0.1]
[1759838538302,25.14507254,230.09,230.08,1e-08]
[1759838539400,21.50897306,230.09,230.08,1e-08]
[1759838540787,26.39999999,230.07,230.06,1e-08]
[1759838540970,13.60897514,230.07,230.06,1e-08]
[1759838541183,14.26897514,230.07,230.06,1e-08]
[1759838542193,10.63287566,230.07,230.06,1e-08]
[1759838546592,21.50935087,230.07,230.06,1e-08]
[1759838546785,31.67647521,230.03,229.98,243.68900064]
[1759838546996,23.51736956,229.99,229.98,243.02900064]
[1759838547704,2.71736956,229.99,229.98,243.02900064]
[1759838547901,7.06538469,229.99,229.98,243.02900064]
[1759838550304,7.06538469,229.99,229.98,243.68900064]
[1759838553225,7.06538469,229.99,229.98,243.02900064]
[1759838555504,7.06538469,229.99,229.98,243.74900064]
[1759838555708,4.34801513,229.99,229.98,274.08900064]
[1759838556111,25.14801513,229.99,229.98,274.08900064]
[1759838557716,27.86538469,229.99,229.98,274.08900064]
[1759838558501,25.14801513,229.99,229.98,274.08900064]
[1759838559709,25.14801513,229.99,229.98,273.36900064]
[1759838559710,27.86538469,229.99,229.98,273.36900064]
[1759838559910,25.86801513,229.99,229.98,218.73098386]
[1759838560111,41.64106717,229.99,229.98,171.2700316]
[1759838560501,40.92106717,229.99,229.98,171.2700316]
[1759838562410,43.81236608,229.99,229.98,171.2700316]
[1759838563713,40.92106717,229.99,229.98,126.14563195]
[1759838563911,40.92106717,229.99,229.98,26.55185604]
[1759838563912,49.80017282,229.99,229.98,26.55185604]
[1759838564113,55.40921288,229.99,229.98,1e-08]
[1759838564504,88.01932635,229.99,229.91,0.69]
[1759838564706,2.71736956,229.92,229.91,0.69]
[1759838564905,2.71736956,229.92,229.89,0.69]
[1759838565106,2.71736956,229.9,229.89,0.69]
[1759838565717,7.06708682,229.9,229.89,27.49]
[1759838565911,27.86708682,229.9,229.89,27.49]
[1759838566722,27.86708682,229.9,229.89,31.03]
[1759838569331,25.14971726,229.9,229.89,31.03]
[1759838569501,27.86708682,229.9,229.89,31.03]
[1759838570603,4.34914974,229.93,229.89,31.03]
[1759838570804,4.34914974,229.93,229.9,0.69]
[1759838571103,20.8,229.91,229.9,0.69]
[1759838571719,25.14952807,229.91,229.9,0.69]
[1759838572300,4.34934415,229.92,229.9,0.69]
[1759838572507,51.34911777,229.94,229.9,0.69]
[1759838573606,4.34911777,229.94,229.9,0.69]
[1759838574934,4.34877147,229.95,229.9,0.69]
[1759838575432,7.24144991,229.95,229.9,0.69]
[1759838577230,2.71736956,229.93,229.91,0.69]
[1759838577529,5.610048,229.94,229.89,30.34]
[1759838577732,5.610048,229.94,229.9,0.69]
[1759838578319,4.34914974,229.93,229.9,0.69]
[1759838578716,4.34914974,229.93,229.91,0.69]
[1759838579241,4.34914974,229.93,229.92,0.69]
[1759838579541,4.34914974,229.93,229.89,30.34]
[1759838579721,7.0665193,229.93,229.89,31.03]
[1759838580032,2.71736956,229.92,229.9,30.34]
[1759838580447,4.34952807,229.91,229.9,30.34]
[1759838582021,4.34952807,229.91,229.9,31.06]
[1759838582422,4.34952807,229.91,229.9,30.34]
[1759838582832,4.34952807,229.91,229.85,0.1]
[1759838583037,2.71736956,229.9,229.86,0.72]
[1759838583231,2.71736956,229.9,229.87,31.06]
[1759838583423,20.8,229.88,229.87,31.06]
[1759838585626,4.35004956,229.89,229.87,31.06]
[1759838585831,25.15004956,229.89,229.88,0.72]
[1759838586728,7.06741912,229.89,229.87,30.34]
[1759838586937,18.66218531,229.89,229.88,30.34]
[1759838587134,17.94218531,229.89,229.88,30.34]
[1759838587637,44.14218531,229.89,229.88,30.34]
[1759838588024,44.14218531,229.89,229.85,0.82]
[1759838588225,44.14218531,229.89,229.88,30.34]
[1759838589038,43.02252371,229.89,229.88,30.34]
[1759838589528,41.42481575,229.89,229.88,30.34]
[1759838590744,41.42481575,229.89,229.88,31.06]
[1759838591437,41.42481575,229.89,229.88,30.34]
[1759838591629,20.8,229.87,229.86,0.72]
[1759838591830,41.42481575,229.89,229.86,30.34]
[1759838592146,41.42481575,229.89,229.87,30.34]
[1759838592442,41.42481575,229.89,229.87,31.06]
[1759838593037,30.55004956,229.89,229.88,0.72]
[1759838593339,32.14775752,229.89,229.87,30.34]
[1759838593640,41.42481575,229.89,229.88,30.34]
[1759838594544,30.55004956,229.89,229.88,30.34]
[1759838594845,4.34763705,230.01,229.88,31.06]
[1759838595151,13.77493693,230.0,229.89,0.72]
[1759838595345,4.34820419,229.98,229.89,0.72]
[1759838595534,2.90537172,229.97,229.89,0.72]
[1759838596042,20.8,229.96,229.89,0.72]
[1759838597041,20.8,229.97,229.89,0.72]
[1759838597545,4.34858236,229.96,229.89,0.72]
[1759838598127,20.8,229.97,229.89,0.72]
[1759838598333,25.14839439,229.97,229.89,0.72]
[1759838598946,4.34814771,229.99,229.89,0.72]
[1759838599249,2.90583723,229.98,229.89,0.72]
[1759838600045,7.25385842,229.99,229.89,0.72]
[1759838600250,4.34802119,229.99,229.89,0.72]
[1759838600928,4.34802119,229.99,229.9,30.36]
[1759838601130,4.34802119,229.99,229.91,0.72]
[1759838601846,20.8,230.0,229.91,0.72]
[1759838602641,25.14785147,230.0,229.91,0.72]
[1759838604453,25.14785147,230.0,229.91,13.77170651]
[1759838604752,25.14785147,230.0,229.92,0.72]
[1759838605944,25.14785147,230.0,229.92,13.77113871]
[1759838606148,25.14785147,230.0,229.93,0.72]
[1759838607273,0.72,230.02,229.93,0.72]
[1759838607433,0.72,230.04,229.93,0.72]
[1759838607756,3.62360597,230.04,229.94,13.05057096]
[1759838608063,3.62360597,230.04,229.95,0.72]
[1759838608253,0.72,230.04,229.96,30.34]
[1759838608555,7.24968175,230.05,229.96,30.34]
[1759838608556,20.8,230.03,229.97,0.72]
[1759838608744,21.52,230.03,229.97,0.72]
[1759838609058,0.72,230.03,229.98,30.34]
[1759838609261,16.81179185,230.05,229.98,30.34]
[1759838609462,0.72,230.04,229.98,30.34]
[1759838609666,4.34744804,230.02,229.98,30.34]
[1759838610149,5.06744804,230.02,229.98,30.34]
[1759838611239,4.34707007,230.04,229.98,31.06]
[1759838611636,0.67,230.03,229.98,31.06]
[1759838611935,5.01728665,230.03,229.98,30.34]
[1759838612147,0.67,230.02,229.98,30.34]
[1759838613161,5.01752662,230.02,229.98,30.34]
[1759838613547,6.61523458,230.02,229.98,30.34]
[1759838614380,6.61523458,230.02,229.98,31.0]
[1759838615559,5.01752662,230.02,229.98,31.0]
[1759838615745,5.94523458,230.02,229.98,31.0]
[1759838616253,5.94523458,230.02,229.98,30.34]
[1759838616438,1.59770796,230.02,229.98,31.0]
[1759838616639,2.26770796,230.02,229.98,31.0]
[1759838617039,5.94527043,230.02,229.98,31.0]
[1759838617861,5.94527043,230.02,229.98,30.34]
[1759838618165,1.59770796,230.03,229.99,0.66]
[1759838618342,1.59770796,230.03,230.0,0.66]
[1759838618948,5.94500566,230.03,229.98,30.34]
[1759838619264,5.94500566,230.03,229.99,0.66]
[1759838619566,5.94500566,230.03,230.0,0.66]
[1759838619759,5.94500566,230.03,229.98,30.34]
[1759838619967,5.94500566,230.03,229.99,0.66]
[1759838620966,6.60500566,230.03,229.99,0.66]
[1759838621166,5.94500566,230.03,229.99,0.66]
[1759838621369,4.34707007,230.04,229.99,0.66]
[1759838621578,1.59770796,230.03,229.99,0.66]
[1759838622874,1.59770796,230.03,230.0,0.66]
[1759838623461,5.94503591,230.03,230.01,0.66]
[1759838623649,4.34732795,230.03,230.01,0.66]
[1759838623849,4.34732795,230.03,229.98,30.34]
[1759838624072,4.34732795,230.03,229.99,0.66]
[1759838624870,4.34732795,230.03,230.0,0.66]
[1759838626390,5.94503591,230.03,229.99,0.66]
[1759838627775,6.60503591,230.03,229.99,0.66]
[1759838628679,6.60503591,230.03,229.98,30.34]
[1759838628680,1.59770796,230.02,229.98,30.34]
[1759838628861,1.59770796,230.02,229.98,31.0]
[1759838629181,1.59770796,230.03,229.99,0.66]
[1759838629393,1.59770796,230.03,230.0,0.66]
[1759838629985,5.94512311,230.03,230.0,0.66]
[1759838630482,5.94512311,230.03,229.98,31.0]
[1759838630779,5.94512311,230.03,229.99,0.66]
[1759838630966,5.94512311,230.03,230.0,0.66]
[1759838632284,4.34741515,230.03,230.0,0.66]
[1759838633686,4.34741515,230.03,230.01,0.66]
[1759838634060,4.34741515,230.03,229.98,30.34]
[1759838634387,4.34741515,230.03,229.99,0.66]
[1759838634575,4.34741515,230.03,230.0,0.66]
[1759838634968,0.66,230.1,230.0,0.66]
[1759838635167,2.90519439,230.09,230.01,10.87647521]
[1759838635370,1.59770796,230.12,230.03,10.87647521]
[1759838635682,4.50290235,230.12,230.04,30.98]
[1759838635893,4.50290235,230.12,230.05,0.66]
[1759838636075,1.59770796,230.12,230.05,0.66]
[1759838636566,4.34569118,230.12,230.05,0.66]
[1759838639678,5.00569118,230.12,230.05,0.66]
[1759838640295,0.66,230.12,230.05,0.66]
[1759838641191,2.25770796,230.12,230.05,0.66]
[1759838642083,5.94345564,230.11,230.06,30.32]
[1759838642398,0.67,230.1,230.07,30.32]
[1759838642893,5.94345564,230.11,230.02,0.66]
[1759838642894,1.59770796,230.08,230.02,0.66]
[1759838643192,2.26770796,230.08,230.03,30.32]
[1759838643399,0.67,230.07,230.03,30.98]
[1759838643600,0.67,230.07,230.02,0.66]
[1759838643784,0.67,230.07,230.04,30.32]
[1759838644886,4.34650323,230.07,230.04,30.32]
[1759838645302,4.34650323,230.07,230.04,30.98]
[1759838647004,5.94402228,230.08,230.04,30.98]
[1759838647193,5.01631432,230.08,230.04,30.98]
[1759838647394,5.01631432,230.08,230.04,30.32]
[1759838647986,5.01631432,230.08,230.04,30.98]
[1759838649006,4.34631432,230.08,230.04,30.98]
[1759838649312,7.06461579,230.09,229.99,4.34650323]
[1759838649485,7.06461579,230.09,230.0,30.98]
[1759838649686,4.34612542,230.09,230.01,0.66]
[1759838650704,15.88011689,230.11,230.01,0.66]
[1759838650913,18.59860726,230.11,230.01,0.66]
[1759838651098,2.71849037,230.1,230.01,0.66]
[1759838651299,3.38849037,230.1,230.02,30.32]
[1759838651610,2.71849037,230.09,230.03,0.66]
[1759838652079,4.34650323,230.07,230.03,0.66]
[1759838652503,4.34650323,230.07,230.04,30.32]
[1759838652707,4.34650323,230.07,230.04,30.98]
[1759838652906,0.67,230.08,230.04,30.98]
[1759838653515,4.34650323,230.07,230.04,30.98]
[1759838653815,0.67,230.06,230.05,30.32]
[1759838654312,4.34650323,230.07,230.05,30.32]
[1759838654488,5.01650323,230.07,230.05,30.32]
[1759838654684,4.34650323,230.07,230.05,30.32]
[1759838660198,4.34631432,230.08,230.03,0.66]
[1759838660509,7.73480469,230.08,230.04,30.98]
[1759838660710,7.06480469,230.08,230.04,30.98]
[1759838661222,7.73480469,230.08,230.05,30.32]
[1759838661925,7.06480469,230.08,230.05,30.32]
[1759838662105,7.06480469,230.08,230.05,30.98]
[1759838662308,4.34631432,230.08,230.05,30.98]
[1759838662618,4.34631432,230.08,230.05,0.66]
[1759838662821,4.34631432,230.08,230.06,30.32]
[1759838663239,4.34612542,230.09,230.07,0.66]
[1759838663397,4.34612542,230.09,230.08,0.66]
[1759838663592,7.06445252,230.1,230.08,0.66]
[1759838663902,4.34596215,230.1,230.08,0.66]
[1759838665720,4.34574768,230.11,230.08,0.66]
[1759838665919,4.34574768,230.11,230.09,0.66]
[1759838666130,4.34574768,230.11,230.06,30.32]
[1759838666431,4.34574768,230.11,230.1,0.66]
[1759838666631,4.34574768,230.11,230.08,0.66]
[1759838670111,4.34574768,230.11,230.06,30.32]
[1759838670320,4.34574768,230.11,230.08,0.66]
[1759838671238,7.06423805,230.11,230.08,0.66]
[1759838672239,4.34574768,230.11,230.08,0.66]
[1759838672448,7.06423805,230.11,230.08,0.66]
[1759838673126,4.34574768,230.11,230.08,0.66]
[1759838673328,7.06423805,230.11,230.08,0.66]
[1759838674039,7.06423805,230.11,230.09,0.66]
[1759838674233,4.34574768,230.11,230.09,0.66]
[1759838674444,4.34574768,230.11,230.07,0.66]
[1759838674738,4.34574768,230.11,230.08,0.66]
[1759838676043,4.34574768,230.11,230.09,30.3]
[1759838677939,4.34574768,230.11,230.09,30.97]
[1759838678730,4.34574768,230.11,230.1,0.67]
[1759838679352,7.26159323,230.11,230.1,0.67]
[1759838679712,7.26159323,230.11,230.09,30.3]
[1759838679918,4.34574768,230.11,230.09,30.3]
[1759838680128,4.34574768,230.11,230.09,30.97]
[1759838682041,4.34574768,230.11,230.1,0.67]
[1759838682245,7.26245319,230.11,230.1,0.67]
[1759838684351,7.26245319,230.11,230.09,30.3]
[1759838684642,4.34574768,230.11,230.09,30.97]
[1759838685142,4.34574768,230.11,230.1,0.67]
[1759838685531,4.34555883,230.12,230.1,0.67]
[1759838685727,4.34555883,230.12,230.03,10.87647521]
[1759838685940,4.34555883,230.12,230.08,0.67]
[1759838686138,4.34555883,230.12,230.09,30.97]
[1759838687544,4.3448018,230.17,230.1,0.67]
[1759838687763,2.9163392,230.16,230.1,0.67]
[1759838687926,13.04489618,230.2,230.1,0.67]
[1759838687927,2.9163392,230.19,230.1,0.67]
[1759838688120,2.71849037,230.2,230.1,0.67]
[1759838688322,3.39849037,230.2,230.1,0.67]